bitfinex/quotes_ETHUSD_20241023
["timestamp","ask_amount","ask_price","bid_price","bid_amount"]
[1729690915476,3.88175,2576.2,2576.0,0.8096]
[1729690915773,3.88153,2576.3,2576.0,0.8096]
[1729690915969,7.76267,2576.5,2576.0,5.55472199]
[1729690916128,3.88133,2576.5,2576.0,1.67282199]
[1729690916331,3.88133,2576.5,2576.1,3.88182]
[1729690916672,3.8814,2576.4,2576.0,0.8096]
[1729690916873,3.88133,2576.5,2576.1,3.88183]
[1729690917664,3.88133,2576.5,2576.1,7.76357]
[1729690917967,3.88133,2576.5,2576.1,3.88174]
[1729690918355,3.88133,2576.5,2576.1,8.620819]
[1729690918589,14.8,2576.8,2576.4,3.88131]
[1729690918867,11.8,2576.8,2576.6,3.88096]
[1729690919065,11.8,2577.0,2576.6,3.88096]
[1729690919625,11.8,2577.0,2576.5,4.6339]
[1729690919900,11.8,2577.0,2576.5,4.69211522]
[1729690920173,15.68049,2577.0,2576.5,4.69211522]
[1729690921732,11.8,2577.0,2576.5,4.69211522]
[1729690921933,11.8,2577.0,2576.6,3.881]
[1729690922372,3.0,2577.0,2576.6,3.881]
[1729690922741,11.8,2577.1,2576.8,3.88076]
[1729690922929,11.8,2577.1,2576.9,0.8138]
[1729690923134,11.8,2577.1,2577.0,3.88048]
[1729690923381,11.8,2577.1,2577.0,4.69428]
[1729690923532,11.8,2577.1,2576.9,0.8138]
[1729690923731,11.8,2577.1,2577.0,3.88048]
[1729690923942,11.8,2577.1,2577.0,4.69428]
[1729690924157,11.8,2577.4,2577.0,4.69428]
[1729690924484,3.88004,2577.3,2577.0,0.8138]
[1729690924766,3.88012,2577.3,2577.0,0.8138]
[1729690924973,15.67989,2577.4,2577.0,0.8138]
[1729690925133,3.88006,2577.3,2577.0,0.8138]
[1729690925332,15.67989,2577.4,2577.0,0.8138]
[1729690925645,3.88009,2577.3,2577.0,0.8138]
[1729690926402,15.67989,2577.4,2577.0,0.8138]
[1729690926992,11.8,2577.4,2577.1,0.792]
[1729690927222,11.8,2577.9,2577.6,3.87943]
[1729690927407,11.8,2577.9,2577.2,3.88018]
[1729690927408,11.008,2577.6,2577.5,3.87972]
[1729690927606,11.008,2577.6,2577.5,3.95730554]
[1729690928183,11.008,2577.6,2577.5,3.87972]
[1729690929118,3.87856,2578.3,2577.8,3.8792]
[1729690929332,7.75717,2578.3,2577.8,3.93738507]
[1729690929621,3.87888,2578.1,2577.6,3.87945]
[1729690929843,7.75784,2578.1,2577.6,3.87945]
[1729690930043,3.87888,2578.1,2577.7,3.87942]
[1729690930198,3.87863,2578.3,2577.7,3.87942]
[1729690930402,3.87874,2578.2,2577.9,0.8077]
[1729690930932,7.75751,2578.2,2577.9,0.8077]
[1729690931235,3.87874,2578.2,2577.9,0.8077]
[1729690932232,3.87893,2578.1,2577.9,0.8077]
[1729690932541,3.87897,2578.0,2577.9,0.8077]
[1729690932700,3.87882,2578.1,2577.9,0.8077]
[1729690934201,3.87852,2578.3,2577.9,0.8077]
[1729690935339,7.75632,2578.6,2578.0,0.07757954]
[1729690935648,3.0,2578.7,2578.3,0.785]
[1729690935814,3.0,2578.5,2578.3,0.785]
[1729690936543,6.8783,2578.5,2578.3,0.785]
[1729690936749,3.87867,2578.2,2577.9,0.76]
[1729690936902,6.87823,2578.5,2577.9,0.76]
[1729690937098,3.87854,2578.3,2577.9,0.76]
[1729690937429,3.87879,2578.2,2577.9,0.76]
[1729690937997,3.87883,2578.1,2577.9,0.76]
[1729690938242,3.92789424,2578.1,2577.9,0.76]
[1729690939610,0.04906424,2578.1,2577.9,0.76]
[1729690939829,3.87854,2578.3,2577.9,0.76]
[1729690940002,0.0491328,2578.0,2577.9,0.76]
[1729690940203,7.75716,2578.3,2577.9,0.76]
[1729690940400,0.0491117,2578.0,2577.9,0.76]
[1729690940606,3.87833,2578.5,2577.9,4.63898]
[1729690940808,3.87833,2578.5,2578.1,3.87876]
[1729690941107,3.87833,2578.5,2577.9,4.63898]
[1729690941108,3.87844,2578.4,2577.9,4.63898]
[1729690941241,3.87844,2578.4,2577.9,5.77318974]
[1729690941453,3.87844,2578.4,2577.9,9.4581655]
[1729690942257,3.87844,2578.4,2577.9,5.5791155]
[1729690942548,3.87838,2578.4,2577.9,5.5791155]
[1729690942760,3.87874,2578.2,2577.9,0.76]
[1729690943318,3.87853,2578.3,2577.9,0.76]
[1729690943515,0.8151,2578.6,2577.9,0.76]
[1729690943516,3.87897,2578.0,2577.9,0.76]
[1729690945252,3.87897,2578.0,2577.8,0.0581857]
[1729690945253,3.87912,2577.9,2577.8,0.0581857]
[1729690946922,3.87912,2577.9,2577.1,0.24259797]
[1729690946923,3.87975,2577.5,2577.1,0.24259797]
[1729690947249,4.51011506,2577.3,2576.6,0.24269157]
[1729690947572,3.88064,2576.9,2576.7,0.19416658]
[1729690947722,3.88078,2576.8,2576.7,0.63105802]
[1729690948068,6.88078,2576.8,2576.7,0.19416658]
[1729690949553,3.0,2576.8,2576.7,0.19416658]
[1729690949772,3.88049,2577.0,2576.7,0.38835242]
[1729690950075,4.69537,2577.2,2576.8,0.19418584]
[1729690950285,4.69537,2577.2,2576.9,0.19418584]
[1729690950576,3.0,2577.4,2577.0,4.07455055]
[1729690950777,3.87979,2577.5,2577.1,0.19416055]
[1729690951079,3.87979,2577.5,2577.0,4.12306946]
[1729690951225,7.75964,2577.5,2577.2,0.38828309]
[1729690951425,3.87979,2577.5,2577.2,0.19414303]
[1729690951677,3.87988,2577.4,2577.2,0.19414303]
[1729690952227,3.87979,2577.5,2577.2,0.19414303]
[1729690952442,3.87995,2577.4,2577.2,0.19414303]
[1729690952641,3.87979,2577.5,2577.2,0.19414303]
[1729690953142,3.87874,2578.2,2577.4,0.05819462]
[1729690953337,3.8794,2577.8,2577.4,0.05819462]
[1729690953600,3.87949,2577.7,2577.4,0.05819462]
[1729690953772,0.04841012,2577.7,2577.5,0.19412432]
[1729690954085,7.75818,2578.0,2577.5,3.87972]
[1729690954285,3.87907,2578.0,2577.6,0.19411373]
[1729690954441,0.04841012,2577.9,2577.6,0.07758313]
[1729690954640,0.04841012,2577.9,2577.5,4.66910635]
[1729690954867,0.04841012,2577.9,2577.6,0.19410778]
[1729690955079,3.87853,2578.3,2577.8,3.8792]
[1729690955268,3.87852,2578.3,2577.9,0.19410778]
[1729690955466,3.87856,2578.3,2577.8,3.8792]
[1729690955668,3.87856,2578.3,2577.9,0.96993271]
[1729690955868,3.87856,2578.3,2577.9,0.77585]
[1729690956080,7.75658,2578.5,2578.0,4.07303181]
[1729690956303,3.87828,2578.5,2578.0,3.87895]
[1729690956634,0.124628,2578.9,2578.2,3.93674598]
[1729690956804,3.87792,2578.7,2578.3,4.07245475]
[1729690957001,3.87778,2578.8,2578.3,3.87845]
[1729690957203,4.002288,2578.9,2578.4,0.8236]
[1729690957376,3.87802,2578.7,2578.4,0.8236]
[1729690958293,0.124628,2578.9,2578.4,0.8236]
[1729690958509,4.002318,2578.9,2578.4,5.1779286]
[1729690958815,0.124628,2578.9,2578.4,1.2996386]
[1729690958974,3.87798,2578.7,2578.4,0.8236]
[1729690959386,3.87822,2578.5,2578.4,0.8236]
[1729690961282,3.92542822,2578.5,2578.4,0.8236]
[1729690964923,3.92542822,2578.5,2578.1,0.05817503]
[1729690965217,3.92553822,2578.5,2578.1,0.05817503]
[1729690965420,3.92553822,2578.5,2578.2,3.87866]
[1729690965421,0.04720822,2578.5,2578.2,3.87866]
[1729690966503,0.04720822,2578.5,2578.3,0.05816559]
[1729690968405,3.92544822,2578.5,2578.3,0.05816559]
[1729690968715,0.04720822,2578.5,2578.3,0.05816559]
[1729690970151,0.0480731,2578.4,2578.3,3.93667559]
[1729690970443,3.87802,2578.7,2578.3,0.05816559]
[1729690970647,0.0480731,2578.4,2578.3,0.05816559]
[1729690971147,0.0480731,2578.4,2578.3,3.93668559]
[1729690971381,7.75603,2578.7,2578.3,0.05816559]
[1729690971556,0.0480731,2578.4,2578.3,0.49393298]
[1729690971743,7.75603,2578.7,2578.3,0.49393298]
[1729690972290,3.9261431,2578.6,2578.3,0.49393298]
[1729690972782,0.0480731,2578.6,2578.4,3.87835]
[1729690973082,4.002378,2578.9,2578.5,4.32320435]
[1729690973443,4.002378,2578.9,2578.3,0.05816559]
[1729690973444,3.87808,2578.6,2578.3,0.05816559]
[1729690973644,3.87837,2578.4,2578.3,0.05816559]
[1729690973954,0.0480731,2578.4,2578.3,0.05816559]
[1729690974160,3.9264431,2578.4,2577.8,3.87914]
[1729690974361,3.87875,2578.2,2577.8,3.87914]
[1729690974580,3.9265431,2578.4,2577.8,3.87914]
[1729690974581,3.92675799,2578.3,2577.9,0.387914]
[1729690974886,3.92683799,2578.2,2577.9,0.387914]
[1729690975461,3.87905,2578.0,2577.7,0.05818317]
[1729690975761,3.87884,2578.1,2577.7,0.05818317]
[1729690975966,0.04804676,2577.9,2577.7,0.05818317]
[1729690976290,0.04804676,2577.8,2577.7,0.05818317]
[1729690976456,3.87884,2578.1,2577.7,0.05818317]
[1729690976457,3.52381228,2578.1,2577.7,0.05818317]
[1729690976660,3.87883,2578.1,2577.7,0.05818317]
[1729690977009,3.87916,2577.9,2577.7,0.05818317]
[1729690977447,0.04793078,2577.8,2577.7,0.05818317]
[1729690978071,3.87913,2577.9,2577.7,0.05818317]
[1729690978273,3.92695295,2577.8,2577.7,0.05818317]
[1729690979172,7.47695295,2577.8,2577.7,0.05818317]
[1729690979371,3.87989,2577.4,2576.9,4.07467256]
[1729690979605,3.87989,2577.4,2577.0,0.40746726]
[1729690979814,0.04755639,2577.3,2577.0,4.28794726]
[1729690980022,0.04755639,2577.3,2577.2,3.88018]
[1729690980375,6.87869,2578.2,2577.8,3.87927]
[1729690980574,3.87862,2578.3,2577.8,3.87917]
[1729690980575,3.87853,2578.3,2577.8,3.87917]
[1729690980885,0.04726103,2578.2,2577.8,4.267087]
[1729690981087,3.0,2578.4,2577.9,3.879]
[1729690981269,0.04726103,2578.1,2577.9,4.07308315]
[1729690981474,3.87844,2578.4,2577.9,7.95212315]
[1729690981717,3.87834,2578.5,2577.9,4.07308315]
[1729690981718,3.92579103,2578.3,2577.9,4.07308315]
[1729690981885,3.92579103,2578.3,2578.0,0.44610002]
[1729690982192,3.87867,2578.2,2578.0,0.44610002]
[1729690982488,7.75715,2578.3,2578.0,0.44610002]
[1729690982670,0.04726103,2578.1,2578.0,0.44610002]
[1729690983009,3.87854,2578.3,2578.0,0.44610002]
[1729690983217,3.87898,2578.0,2577.7,0.24260394]
[1729690983399,0.04726103,2578.1,2578.0,0.0581792]
[1729690983400,3.87889,2578.1,2578.0,0.0581792]
[1729690985425,3.87863,2578.3,2578.0,0.0581792]
[1729690987378,3.87831,2578.5,2578.0,0.0581792]
[1729690987579,3.87837,2578.4,2578.0,3.9370792]
[1729690987773,3.87837,2578.4,2578.0,4.71868812]
[1729690987979,3.87831,2578.5,2578.0,4.71868812]
[1729690988425,4.60947492,2578.9,2578.4,3.87833]
[1729690988587,0.73174492,2578.9,2578.5,3.87822]
[1729690988788,0.73174492,2578.9,2578.6,0.775655]
[1729690989016,4.002258,2578.9,2578.6,0.775655]
[1729690989482,3.87779,2578.8,2578.3,4.12104394]
[1729690989680,3.87777,2578.8,2578.4,4.07235999]
[1729690989883,3.87777,2578.8,2578.4,3.87832]
[1729690990288,3.87777,2578.8,2578.1,0.24260394]
[1729690990289,3.0,2578.8,2578.1,0.24260394]
[1729690990491,3.87829,2578.5,2578.2,0.19403877]
[1729690990740,3.87844,2578.4,2578.0,0.0581792]
[1729690990886,3.87873,2578.2,2578.0,0.0581792]
[1729690991091,3.8786,2578.3,2578.0,0.0581792]
[1729690992430,3.87871,2578.2,2578.0,0.0581792]
[1729690992937,3.87834,2578.5,2578.0,0.0581792]
[1729690993091,3.87853,2578.3,2578.0,0.0581792]
[1729690996013,3.87882,2578.1,2578.0,0.0581792]
[1729690997335,6.87882,2578.1,2578.0,0.0581792]
[1729690998260,3.87929,2577.8,2577.6,0.8117]
[1729690998837,0.04786224,2577.7,2577.6,0.8117]
[1729690999009,3.92728224,2577.7,2577.6,0.8117]
[1729690999207,3.87942,2577.7,2577.6,0.8117]
[1729690999408,3.92728224,2577.7,2577.6,0.8117]
[1729691000503,0.04786224,2577.7,2577.6,0.8117]
[1729691000704,3.87928,2577.8,2577.6,0.8117]
[1729691001008,0.04759857,2577.7,2577.6,4.70729]
[1729691001318,3.87885,2578.1,2577.7,0.8253]
[1729691001527,6.8785,2578.4,2577.8,3.87925]
[1729691001851,3.87884,2578.1,2577.9,0.8253]
[1729691002047,3.87882,2578.1,2578.0,0.05818074]
[1729691002425,3.87862,2578.3,2578.0,0.82848074]
[1729691002616,8.38832409,2578.6,2578.0,0.82848074]
[1729691002617,3.87882,2578.1,2578.0,0.82848074]
[1729691003445,3.87882,2578.1,2578.0,0.7703]
[1729691003714,3.87882,2578.1,2578.0,0.82848074]
[1729691004110,3.87882,2578.1,2578.0,0.7703]
[1729691004551,3.87882,2578.1,2578.0,0.82847487]
[1729691005277,3.87882,2578.1,2578.0,0.05817487]
[1729691005631,6.87882,2578.1,2578.0,0.05817487]
[1729691008267,3.87957,2577.6,2577.5,0.768]
[1729691008434,4.42897,2578.0,2577.3,0.7593]
[1729691008435,7.4048868,2577.7,2577.3,0.7593]
[1729691008631,3.88002,2577.4,2577.3,0.7593]
[1729691009974,3.88017,2577.3,2577.1,0.7593]
[1729691010132,3.88017,2577.3,2576.9,0.81750439]
[1729691010133,3.88033,2577.1,2576.9,0.81750439]
[1729691010335,3.88048,2577.0,2576.9,0.05820439]
[1729691010586,3.88048,2577.0,2576.3,0.07276813]
[1729691010587,3.88108,2576.6,2576.5,0.7593]
[1729691010784,3.88095,2576.7,2576.5,0.7593]
[1729691011081,3.88108,2576.6,2576.5,0.7593]
[1729691011383,3.881,2576.7,2576.5,0.7593]
[1729691011734,3.88108,2576.6,2576.5,0.7593]
[1729691013496,3.92814584,2576.6,2576.5,0.7593]
[1729691015774,0.04706584,2576.6,2576.5,0.7593]
[1729691015975,3.92814584,2576.6,2576.5,0.7593]
[1729691016948,0.04706584,2576.6,2576.5,0.7593]
[1729691018884,3.88063,2576.9,2576.5,1.2292009]
[1729691019090,0.04622151,2576.6,2576.5,1.2292009]
[1729691019298,3.88063,2576.9,2576.5,1.2292009]
[1729691019588,3.88048,2577.0,2576.5,4.3511109]
[1729691019884,0.04622151,2576.8,2576.6,1.23611109]
[1729691020089,3.88048,2577.0,2576.6,1.23611109]
[1729691020498,0.04622151,2576.9,2576.6,1.23611109]
[1729691022499,0.04622151,2576.9,2576.7,4.69236]
[1729691022703,3.88034,2577.1,2576.8,0.52050863]
[1729691023012,3.88034,2577.1,2576.7,4.69236]
[1729691023175,3.88034,2577.1,2576.7,0.8115]
[1729691023379,3.88034,2577.1,2576.7,4.69242]
[1729691023805,3.88034,2577.1,2576.7,0.8115]
[1729691024111,3.88019,2577.2,2576.7,4.69235]
[1729691024407,3.88039,2577.1,2576.8,0.469235]
[1729691024604,3.88039,2577.1,2576.7,0.8115]
[1729691025568,3.88039,2577.1,2576.8,0.05820319]
[1729691025760,3.88019,2577.2,2576.8,3.93896319]
[1729691026310,6.8801,2577.3,2576.9,0.7744]
[1729691027601,3.88026,2577.2,2576.9,0.7744]
[1729691027794,6.8801,2577.3,2576.9,1.24575132]
[1729691028172,0.04494121,2577.2,2576.9,1.24575132]
[1729691028372,3.92520121,2577.2,2576.9,1.24575132]
[1729691028769,0.04494121,2577.2,2576.9,1.24575132]
[1729691029306,0.04494121,2577.1,2576.9,1.24575132]
[1729691029505,3.88021,2577.2,2576.9,1.24575132]
[1729691029665,0.04494121,2577.1,2577.0,0.51846945]
[1729691030002,3.8802,2577.2,2577.0,0.51846945]
[1729691030206,0.04499926,2577.1,2577.0,0.51846945]
[1729691030415,0.04499926,2577.1,2577.0,0.57667115]
[1729691031002,0.04499926,2577.1,2577.0,0.8784017]
[1729691031312,7.75992,2577.4,2577.0,0.8784017]
[1729691031509,3.87995,2577.4,2577.0,0.8784017]
[1729691031711,0.04507313,2577.3,2577.0,0.8784017]
[1729691032879,0.04507313,2577.3,2577.0,0.8202]
[1729691033092,0.04507313,2577.3,2577.1,0.470072]
[1729691033500,7.20501313,2577.4,2577.1,0.470072]
[1729691033906,3.32502313,2577.4,2577.1,0.470072]
[1729691034117,3.92364069,2577.3,2577.1,0.470072]
[1729691034318,3.88033,2577.1,2577.0,0.8202]
[1729691034619,3.92398512,2577.1,2576.8,0.84310773]
[1729691036945,0.04365512,2577.1,2576.8,4.72382773]
[1729691037095,0.04365512,2577.1,2576.9,0.25236631]
[1729691037294,0.04365512,2577.1,2576.9,0.05820188]
[1729691037794,0.04365512,2577.1,2576.8,1.64537277]
[1729691038036,0.04365512,2577.1,2576.9,0.19416425]
[1729691038324,0.04365512,2577.1,2576.8,1.64537277]
[1729691038593,3.92398512,2577.1,2576.8,1.64537277]
[1729691038793,3.92398512,2577.1,2576.9,0.19416586]
[1729691039119,3.92398512,2577.1,2576.8,1.64537277]
[1729691039120,0.04365512,2577.1,2576.8,1.64537277]
[1729691039309,0.04365512,2577.1,2576.9,0.19416635]
[1729691039504,0.04365512,2577.1,2576.8,1.64537277]
[1729691039743,0.04365512,2577.1,2576.9,0.19416579]
[1729691039912,0.04365512,2577.1,2576.8,1.64537277]
[1729691040099,0.04365512,2577.1,2576.9,0.19416582]
[1729691040294,3.92398512,2577.1,2576.8,1.64537277]
[1729691040512,0.04365512,2577.1,2576.9,0.1941669]
[1729691040730,0.04365512,2577.1,2576.9,0.05820133]
[1729691041238,0.04365512,2577.1,2576.9,0.58270975]
[1729691041598,0.04365512,2577.1,2577.0,0.05820133]
[1729691041912,3.88018,2577.2,2577.0,0.05820133]
[1729691042102,0.04359181,2577.1,2577.0,0.05820133]
[1729691043043,0.04359181,2577.1,2577.0,0.19415951]
[1729691043335,3.88005,2577.3,2577.0,0.19415951]
[1729691043542,0.04358653,2577.2,2577.1,0.05820095]
[1729691043741,3.87958,2577.6,2577.1,4.13268952]
[1729691043947,3.8064,2577.9,2577.2,3.88018]
[1729691044100,3.87951,2577.7,2577.5,0.7799]
[1729691044625,3.87928,2577.8,2577.5,0.7799]
[1729691044942,3.87943,2577.7,2577.5,0.7799]
[1729691045610,4.68561,2577.9,2577.5,0.7799]
[1729691045942,3.87942,2577.7,2577.5,0.7799]
[1729691046940,4.68561,2577.9,2577.5,0.7799]
[1729691046941,3.87928,2577.8,2577.5,1.245891]
[1729691047348,0.8151,2578.1,2577.5,1.245891]
[1729691047550,3.87913,2577.9,2577.5,4.65961]
[1729691047852,3.87885,2578.1,2577.7,4.70364]
[1729691048978,3.87885,2578.1,2577.8,0.05818685]
[1729691049537,3.87861,2578.3,2577.8,0.05818685]
[1729691049538,6.87869,2578.2,2577.8,0.05818685]
[1729691049744,3.87855,2578.3,2577.9,4.70222]
[1729691049976,4.6932,2578.6,2578.1,3.87874]
[1729691050184,3.87823,2578.5,2578.2,0.8231]
[1729691050483,3.87808,2578.6,2578.2,0.8231]
[1729691050842,3.87824,2578.5,2578.2,0.8231]
[1729691051383,3.87844,2578.4,2578.2,0.8231]
[1729691052138,3.87824,2578.5,2578.2,0.8231]
[1729691053472,3.52567038,2578.8,2578.2,0.8231]
[1729691053473,3.8784,2578.4,2578.2,0.8231]
[1729691054502,3.87817,2578.6,2578.3,0.05817325]
[1729691054705,3.87788,2578.8,2578.3,0.05817325]
[1729691054706,7.42777,2578.8,2578.3,0.05817325]
[1729691054908,3.87777,2578.8,2578.3,3.93665325]
[1729691055268,0.939728,2578.9,2578.3,0.05817325]
[1729691055873,3.87813,2578.6,2578.3,0.05817325]
[1729691056211,3.87813,2578.6,2578.2,0.8231]
[1729691056897,0.55,2578.7,2578.2,0.8231]
[1729691057206,3.87843,2578.4,2578.2,0.8231]
[1729691057416,3.87852,2578.3,2577.8,3.87917]
[1729691057706,7.75717,2578.3,2577.9,1.186417]
[1729691058081,3.87852,2578.3,2577.9,5.065527]
[1729691058284,0.04143578,2578.2,2577.9,5.14304327]
[1729691058484,0.04143578,2578.2,2577.9,1.186417]
[1729691058805,0.04143578,2578.1,2577.9,1.186417]
[1729691059207,3.87868,2578.2,2577.9,0.7985]
[1729691059409,0.04170472,2578.0,2577.9,0.7985]
[1729691059609,0.04170472,2578.0,2577.3,3.89001]
[1729691059610,3.87905,2578.0,2577.7,0.8329]
[1729691059920,3.87905,2578.0,2577.1,0.07219703]
[1729691059921,3.87927,2577.8,2577.5,0.8329]
[1729691060406,0.04194201,2577.7,2577.5,0.8329]
[1729691060566,0.04194201,2577.7,2577.6,3.87957]
[1729691060767,4.42868,2578.2,2577.8,0.7851]
[1729691060971,3.87904,2578.0,2577.8,0.7851]
[1729691062806,4.42877,2578.2,2577.8,0.7851]
[1729691062807,3.87884,2578.1,2577.8,0.7851]
[1729691064067,4.42877,2578.2,2577.8,0.7851]
[1729691064271,3.87823,2578.5,2578.1,0.7659]
[1729691064510,3.7875,2578.7,2578.2,3.87856]
[1729691064511,3.87794,2578.7,2578.2,3.87856]
[1729691064706,3.87815,2578.6,2578.2,3.87856]
[1729691064878,3.87815,2578.6,2578.1,0.7659]
[1729691065088,3.87786,2578.8,2578.2,4.343144]
[1729691065305,3.87786,2578.8,2578.4,0.7659]
[1729691065808,3.878,2578.7,2578.4,0.7659]
[1729691066826,3.87808,2578.6,2578.4,0.7659]
[1729691067388,3.87808,2578.6,2578.4,0.82407251]
[1729691067591,3.87802,2578.7,2578.4,0.82407251]
[1729691068390,3.87798,2578.7,2578.4,0.82407251]
[1729691068599,3.87799,2578.7,2578.4,0.7659]
[1729691068804,3.87786,2578.8,2578.4,0.7659]
[1729691069003,3.8781,2578.6,2578.4,0.7659]
[1729691069199,3.8781,2578.6,2578.5,0.05816976]
[1729691070298,3.87791,2578.8,2578.5,0.05816976]
[1729691070930,4.42781,2578.8,2578.5,0.05816976]
[1729691071491,0.124628,2578.9,2578.5,4.40657074]
[1729691071696,4.002308,2578.9,2578.5,0.52842074]
[1729691072637,0.124628,2578.9,2578.6,3.87799]
[1729691072868,0.124628,2578.9,2578.7,0.7798]
[1729691073020,0.124628,2578.9,2578.7,4.65771]
[1729691073219,0.124628,2578.9,2578.8,0.85357]
[1729691073795,0.124628,2578.9,2578.8,4.73134]
[1729691074404,0.124628,2578.9,2578.8,12.3083637]
[1729691074609,0.124628,2578.9,2578.8,12.56562473]
[1729691075137,0.124628,2578.9,2578.8,12.56548564]
[1729691075435,0.124628,2578.9,2578.8,12.47323861]
[1729691075637,0.124628,2578.9,2578.8,12.55543073]
[1729691075804,0.124628,2578.9,2578.8,12.54543073]
[1729691076015,0.124628,2578.9,2578.8,12.55543073]
[1729691076406,0.124628,2578.9,2578.8,12.54543073]
[1729691076651,0.124628,2578.9,2578.8,12.47323861]
[1729691076849,0.124628,2578.9,2578.8,5.94756823]
[1729691077079,0.124628,2578.9,2578.8,5.7051081]
[1729691077278,0.124628,2578.9,2578.8,5.51114]
[1729691077487,0.124628,2578.9,2578.8,5.70513419]
[1729691079237,0.16333647,2578.9,2578.8,5.70513419]
[1729691080276,4.04095647,2578.9,2578.8,0.19399419]
[1729691080494,0.16333647,2578.9,2578.7,0.19399419]
[1729691080701,0.16333647,2578.9,2578.8,0.19399419]
[1729691080859,0.16333647,2578.9,2578.6,4.64366]
[1729691081054,4.04101647,2578.9,2578.7,1.0990349]
[1729691081255,4.04101647,2578.9,2578.7,0.19401283]
[1729691081471,0.16333647,2578.9,2578.6,0.7656]
[1729691081670,0.16333647,2578.9,2578.6,4.6436]
[1729691081889,0.16333647,2578.9,2578.6,0.95961788]
[1729691082078,0.16333647,2578.9,2578.7,0.19401788]
[1729691082274,0.16333647,2578.9,2578.7,0.48957776]
[1729691082557,4.04103647,2578.9,2578.6,0.95961788]
[1729691082761,7.91874647,2578.9,2578.6,0.7656]
[1729691082961,3.87792,2578.7,2578.5,0.05816976]
[1729691083199,3.91689443,2578.6,2578.5,0.05816976]
[1729691083712,3.91689443,2578.6,2578.2,1.00791788]
[1729691083713,3.8783,2578.5,2578.2,1.00791788]
[1729691083884,3.8783,2578.5,2578.2,0.8139]
[1729691084116,0.03864528,2578.4,2578.2,0.87207254]
[1729691084285,3.87852,2578.3,2578.2,0.87207254]
[1729691084457,3.87852,2578.3,2578.2,0.05817254]
[1729691084908,0.03839761,2578.3,2578.2,0.05817254]
[1729691085274,7.75656,2578.5,2578.2,0.05817254]
[1729691085464,0.03839761,2578.3,2578.2,0.85127254]
[1729691085669,3.87848,2578.4,2578.2,0.05817254]
[1729691085863,0.03831856,2578.3,2578.2,0.05817254]
[1729691087089,0.03831856,2578.3,2578.0,4.86607788]
[1729691087294,0.03831856,2578.3,2578.0,5.74059067]
[1729691087806,0.03831856,2578.3,2578.0,5.54657279]
[1729691088199,0.03831856,2578.3,2578.1,3.87881]
[1729691088395,0.03831856,2578.3,2578.2,0.05817356]
[1729691088591,3.87814,2578.6,2578.2,0.05817356]
[1729691088810,0.03827639,2578.3,2578.2,0.05817356]
[1729691089114,0.03827639,2578.3,2578.0,5.74060067]
[1729691089115,0.7638,2578.5,2578.0,0.19401788]
[1729691089316,3.87882,2578.1,2577.8,0.96621788]
[1729691089612,0.03814465,2578.0,2577.8,1.25676079]
[1729691090407,0.03814465,2578.0,2577.9,0.05817888]
[1729691090762,3.87849,2578.4,2577.9,0.05817888]
[1729691090962,3.91673408,2578.3,2577.9,4.13136985]
[1729691091282,0.03813408,2578.3,2578.0,4.07303097]
[1729691091477,0.03813408,2578.3,2578.0,4.99973903]
[1729691091779,3.87823,2578.5,2578.1,3.8787]
[1729691091949,3.87823,2578.5,2578.1,0.98125095]
[1729691092149,0.03803921,2578.4,2578.1,4.66594]
[1729691092356,3.8781,2578.6,2578.2,3.87866]
[1729691092551,0.03803921,2578.5,2578.2,3.87866]
[1729691092864,0.03803921,2578.5,2578.3,0.48599203]
[1729691093787,0.0378472,2578.4,2578.3,0.48599203]
[1729691094148,3.87823,2578.5,2578.1,4.66593]
[1729691094378,0.0378472,2578.4,2578.1,4.66593]
[1729691094537,0.0378472,2578.4,2578.1,4.8599903]
[1729691094884,0.0378472,2578.4,2578.1,3.87873]
[1729691095180,0.0378472,2578.4,2578.0,4.8888003]
[1729691095333,0.0378472,2578.4,2578.1,1.07666222]
[1729691095535,0.0378472,2578.4,2578.1,1.07666494]
[1729691095986,0.0378472,2578.4,2578.1,0.88260192]
[1729691096278,3.9162172,2578.4,2578.1,0.88260192]
[1729691096677,0.0378472,2578.4,2578.1,0.88260192]
[1729691096869,0.0378472,2578.4,2578.3,4.66132]
[1729691097044,3.87793,2578.7,2578.3,4.66132]
[1729691097243,0.03782612,2578.4,2578.3,0.7828]
[1729691097553,0.03782612,2578.4,2578.3,4.66128]
[1729691097772,3.87793,2578.7,2578.3,4.66128]
[1729691097953,0.03782612,2578.6,2578.4,0.05817026]
[1729691098545,3.87777,2578.8,2578.4,0.05817026]
[1729691098749,3.87821,2578.6,2578.4,0.05817026]
[1729691099070,3.91606722,2578.5,2578.4,0.05817026]
[1729691099595,0.03784722,2578.5,2578.4,0.05817026]
[1729691100494,4.70676722,2578.5,2578.4,0.05817026]
[1729691101046,5.25676722,2578.5,2578.4,0.05817026]
[1729691101746,4.70676722,2578.5,2578.4,0.05817026]
[1729691102487,3.87842,2578.4,2578.0,4.07297132]
[1729691102790,0.03782087,2578.3,2578.0,4.75782802]
[1729691103006,0.03782087,2578.3,2578.1,3.87874]
[1729691103221,4.66904,2578.5,2578.0,4.75782802]
[1729691103412,4.66904,2578.5,2578.1,3.87877]
[1729691103413,0.03781559,2578.2,2578.1,3.87877]
[1729691103611,0.7907,2578.5,2578.1,3.87877]
[1729691103612,3.87837,2578.4,2578.1,0.19405914]
[1729691103904,0.03781559,2578.2,2578.0,8.63671802]
[1729691104105,4.66894,2578.5,2578.1,4.8456356]
[1729691104313,4.66894,2578.5,2578.1,4.07287914]
[1729691104468,4.66894,2578.5,2578.1,3.87882]
[1729691104668,4.66894,2578.5,2578.1,3.93699926]
[1729691104969,4.66894,2578.5,2578.1,0.05817926]
[1729691105365,8.54724,2578.5,2578.1,0.05817926]
[1729691105591,3.87815,2578.6,2578.1,0.25224248]
[1729691105792,4.66144,2578.7,2578.3,3.87849]
[1729691106005,4.66144,2578.7,2578.4,3.87835]
[1729691106006,0.7835,2578.7,2578.4,3.87835]
[1729691106206,4.002338,2578.9,2578.4,3.87835]
[1729691106368,0.124628,2578.9,2578.4,3.87835]
[1729691106569,7.002328,2578.9,2578.4,4.63269]